Workbook

Sheet 1ST DEC 14freight
A2: TRANSPORTATION WEF 1ST DECEMBER 2014
A3: DESTINATION | D3: BD | E3: Hazira | F3: Gandhar
A4: ALWAR - JAIPUR | D4: 2111 | E4: 2583 | F4: 2277
A5: AHEMADNAGAR | D5: 1924 | E5: 1522 | F5: 1828
A6: BHAMBORI | D6: 1447 | E6: 1120 | F6: 1447
A7: BARODA | D7: 418 | E7: 599 | F7: 597
A8: BARSHI | D8: 2402 | E8: 2126 | F8: 2548
A9: BHUJ | D9: - | E9: 1152 | F9: 891
A10: BOISAR | D10: 1402 | E10: 840 | F10: 1462
A11: DAMAN | D11: 887 | E11: 591 | F11: 880
A12: DEHRADUN | D12: 2971 | E12: 3420 | F12: 6263
A13: GOA | D13: 3207 | E13: 3214 | F13: 3169
A14: GONDIA | D14: - | E14: 2094 | F14: 2478
A15: GARADHIA | D15: 504 | E15: 629 | F15: 511
A16: HARIDWAR | D16: 2904 | E16: 3344 | F16: 3188
A17: JALGAON | D17: 1480 | E17: 1153 | F17: 1480
A18: RAVER | D18: 1552 | E18: 1205 | F18: 1563
A19: JAMMU | D19: 3603 | E19: 3614 | F19: 3534
A20: MUMBAI | D20: 1547 | E20: 1107 | F20: 1602
A21: NALGONDA | D21: 3250 * | E21: 2867 | F21: 3091
A22: NASHIK | D22: 1371 | E22: 1210 | F22: 1477
A23: NAGPUR | D23: 2502 | E23: 2025 | F23: 2377
A24: PHALTAN | D24: - | E24: 2128 | F24: -
A25: SANGLI | D25: 2189 | E25: 2166 | F25: 2491
A26: SATARA | D26: 2146 | E26: 2126 | F26: 2250 *
A27: SILVASSA | D27: 887 | E27: 612 | F27: 890
A28: SOLAPUR | D28: 2404 | E28: 2126 | F28: 2546
A29: TALASARI | D29: 1351 | E29: 654 | F29: 1411
A30: UMERGAON | D30: 849 | E30: 579 | F30: 706
A31: VASAI | D31: 1472 | E31: 938 | F31: 1388
A32: UDMALPET | D32: 4515 | E32: 4359 | F32: 4417
A33: RAIGAD/MAHAD | D33: 1727 | E33: 1309 | F33: 1684

Sheet LD RD 1ST DEC14
A1: RO Annex wef 1st Dec 14
A2: Ex-Works - HAZIRA / GANDHAR / BARODA
A3: State | B3: Pricing Zone | C3: Locational Discount | D3: Regional Discount | F3: State | G3: Pricing Zone | H3: Locational Discount | I3: Regional Discount
A4: GUJARAT | B4: AHMEDABAD | D4: 500 | F4: ANDHRA PRADESH | G4: CUDDAPAH | H4: 700 | I4: 2500
A5: GUJARAT | B5: BARODA | D5: 500 | F5: TELANGANA | G5: HYDERABAD | H5: 700 | I5: 1500
A6: GUJARAT | B6: BHAVNAGAR | D6: 500 | F6: ANDHRA PRADESH | G6: NANDYAL | H6: 700 | I6: 2500
A7: GUJARAT | B7: GANDHIDHAM | D7: 1500 | F7: TELANGANA | G7: SURYAPET | H7: 700 | I7: 1500
A8: GUJARAT | B8: KALOL/MEHSANA | D8: 500 | F8: ANDHRA PRADESH | G8: TIRUPATI | H8: 700 | I8: 2500
A9: GUJARAT | B9: RAJKOT | D9: 1000 | F9: ANDHRA PRADESH | G9: VIJAYAWADA | H9: 700 | I9: 1500
A10: GUJARAT | B10: SURAT | D10: 500 | F10: ANDHRA PRADESH | G10: VISHAKAPATNAM | H10: 700 | I10: 1500
A11: GUJARAT | B11: VALSAD | D11: 500 | F11: CHHATISGARH | G11: BILASPUR | H11: 700 | I11: 1500
A12: RAJASTHAN | B12: BHIWADI | C12: 700 | D12: 250 | F12: CHHATISGARH | G12: RAIPUR | H12: 700 | I12: 1500
A13: RAJASTHAN | B13: JAIPUR | C13: 700 | D13: 500 | F13: MADHYA PRADESH | G13: BHOPAL | H13: 700 | I13: 500
A14: RAJASTHAN | B14: JODHPUR | C14: 700 | D14: 500 | F14: MADHYA PRADESH | G14: GWALIOR | H14: 700 | I14: 1000
A15: RAJASTHAN | B15: KOTA | C15: 700 | D15: 500 | F15: MADHYA PRADESH | G15: INDORE | H15: 700 | I15: 1000
A16: RAJASTHAN | B16: UDAIPUR | C16: 700 | D16: 500 | F16: MADHYA PRADESH | G16: JABALPUR | H16: 700 | I16: 1000
A17: KARNATAKA | B17: BENGALURU | C17: 700 | D17: 2500 | F17: MADHYA PRADESH | G17: SENDHWA | H17: 700 | I17: 1500
A18: KARNATAKA | B18: BELLARY | C18: 700 | D18: 2500 | F18: UTTARANCHAL | G18: DEHRADUN | H18: 700 | I18: 1000
A19: KARNATAKA | B19: GULBARGA | C19: 700 | D19: 1500 | F19: UTTARANCHAL | G19: RUDRAPUR | H19: 700 | I19: 1000
A20: KARNATAKA | B20: HUBLI | C20: 700 | D20: 2000 | F20: UTTAR PRADESH | G20: AGRA | H20: 700 | I20: 500
A21: KARNATAKA | B21: MANGALORE | C21: 700 | D21: 2500 | F21: UTTAR PRADESH | G21: GHAZIABAD | H21: 700 | I21: 500
A22: ASSAM | B22: GUWAHATI | C22: 700 | D22: 2500 | F22: UTTAR PRADESH | G22: KANPUR | H22: 700 | I22: 1000
A23: BIHAR | B23: PATNA | C23: 700 | D23: 2500 | F23: UTTAR PRADESH | G23: SAHARANPUR | H23: 700
A24: JHARKHAND | B24: JAMSHEDPUR | C24: 700 | D24: 2500 | F24: UTTAR PRADESH | G24: VARANASI | H24: 700 | I24: 1500
A25: JHARKHAND | B25: RANCHI | C25: 700 | D25: 2500 | F25: KERALA | G25: CALICUT | H25: 700 | I25: 2500
A26: MEGHALAYA | B26: BYRNIHAT | C26: 700 | D26: 2500 | F26: KERALA | G26: KOCHI | H26: 700 | I26: 2500
A27: ODISHA | B27: BALASORE | C27: 700 | D27: 2500 | F27: KERALA | G27: THIRUVANANTHAPURAM | H27: 700 | I27: 2500
A28: ODISHA | B28: BARGARH | C28: 700 | D28: 2500 | F28: PUDUCHERRY | G28: PUDUCHERRY | H28: 700 | I28: 2500
A29: ODISHA | B29: CUTTACK | C29: 700 | D29: 2500 | F29: PUDUCHERRY | G29: YANAM | H29: 700 | I29: 1500
A30: SIKKIM | B30: GANGTOK | C30: 700 | D30: 2500 | F30: TAMIL NADU | G30: CHENNAI | H30: 700 | I30: 2500
A31: TRIPURA | B31: AGARTALA | C31: 700 | D31: 1500 | F31: TAMIL NADU | G31: COIMBATORE | H31: 700 | I31: 2500
A32: WEST BENGAL | B32: KOLKATA | C32: 700 | D32: 2500 | F32: TAMIL NADU | G32: HOSUR | H32: 700 | I32: 2500
A33: WEST BENGAL | B33: JALPAIGURI | C33: 700 | D33: 2500 | F33: TAMIL NADU | G33: KARUR | H33: 700 | I33: 2500
A34: WEST BENGAL | B34: PURULIA | C34: 700 | D34: 2500 | F34: TAMIL NADU | G34: MADURAI | H34: 700 | I34: ALW
A35: CHANDIGARH | B35: CHANDIGARH | C35: 700 | F35: TAMIL NADU | G35: SALEM | H35: 700 | I35: 2500
A36: HIMACHAL PRADESH | B36: BADDI | C36: 700 | F36: TAMIL NADU | G36: TUTICORIN | H36: 700 | I36: 2500
A37: HIMACHAL PRADESH | B37: KALAAMB | C37: 700 | F37: GOA | G37: PANJIM | H37: 700 | I37: 1500
A38: JAMMU & KASHMIR | B38: JAMMU | C38: 700 | F38: MAHARASHTRA | G38: AURANGABAD | H38: 700 | I38: 1500
A39: JAMMU & KASHMIR | B39: SRINAGAR | C39: 700 | F39: MAHARASHTRA | G39: BHIWANDI | H39: 700 | I39: 1500
A40: PUNJAB | B40: LUDHIANA | C40: 700 | F40: MAHARASHTRA | G40: JALGAON | H40: 700 | I40: 1000
A41: DAMAN & DIU | B41: DAMAN | C41: 700 | D41: 1000 | F41: MAHARASHTRA | G41: KOLHAPUR | H41: 700 | I41: 1500
A42: DAMAN & DIU | B42: DIU | C42: 700 | D42: 500 | F42: MAHARASHTRA | G42: MUMBAI | H42: 700 | I42: 1500
A43: DADRA, NAGARHAVELI | B43: SILVASSA | C43: 700 | D43: 1000 | F43: MAHARASHTRA | G43: NAGPUR | H43: 700 | I43: 1000
A44: DELHI | B44: DELHI | C44: 700 | D44: 250 | F44: MAHARASHTRA | G44: NASHIK | H44: 700 | I44: 1500
A45: HARYANA | B45: FARIDABAD | C45: 700 | D45: 250 | F45: MAHARASHTRA | G45: PUNE | H45: 700 | I45: 1500
A46: HARYANA | B46: GURGAON | C46: 700 | D46: 250 | F46: MAHARASHTRA | G46: SOLAPUR | H46: 700 | I46: 1500
A47: HARYANA | B47: PANIPAT | C47: 700 | D47: 250 | F47: ANDAMAN & NICOBAR | G47: PORT BLAIR | H47: 700 | I47: 250
F48: MADHYA PRADESH | G48: TIKAMGARH | H48: 700 | I48: 1500

Sheet 1ST DEC 14 DEPOT
A1: EX DEPOT PRICE 1.12.14
D2: PRIME-GRADES | I2: OFF-GRADES
D3: 67-01/67BER01/67GER01 | E3: 67-11 | F3: 57GER01 | G3: 57GMR01 | H3: 67GER01F | I3: 67-03/67BER03/67GER03 | J3: 57GMR03
A5: MUMBAI /PANVEL | B5: CRDT. | C5: BASIC | D5: 65890 | E5: =D5+500 -> 66390 | F5: =D5+1500 -> 67390 | G5: =D5+1500 -> 67390 | H5: =D5+300 -> 66190 | I5: =D5-1000 -> 64890 | J5: =D5+500 -> 66390
C6: EX.DUTY 12.36% | D6: =SUM(D5*12.36%) -> 8144.004 | E6: 8205.804 | F6: 8329.404 | G6: 8329.404 | H6: 8181.084 | I6: 8020.404 | J6: 8205.804
C7: TRADE DISC. | D7: 0 | E7: 0 | F7: 0 | G7: 0 | H7: 0 | I7: 0 | J7: 0
C8: EX-GODOWN | D8: =D5+D6 -> 74034.004 | E8: 74595.804 | F8: 75719.404 | G8: 75719.404 | H8: 74371.084 | I8: 72910.404 | J8: 74595.804
B9: CASH | C9: CASH.DISC | D9: 700 | E9: =D9 -> 700 | F9: 700 | G9: 700 | H9: 700 | I9: 700 | J9: 700
C10: EX-GODOWN | D10: =D8-D9 -> 73334.004 | E10: 73895.804 | F10: 75019.404 | G10: 75019.404 | H10: 73671.084 | I10: 72210.404 | J10: 73895.804
A12: Daman | B12: CRDT. | C12: BASIC | D12: =D5-124 -> 65766 | E12: =D12+500 -> 66266 | F12: =D12+1500 -> 67266 | G12: =D12+1500 -> 67266 | H12: =D12+300 -> 66066 | I12: =D12-1000 -> 64766 | J12: =D12+500 -> 66266
C13: EX.DUTY 12.36% | D13: =SUM(D12*12.36%) -> 8128.6776 | E13: 8190.4776 | F13: 8314.0776 | G13: 8314.0776 | H13: 8165.7576 | I13: 8005.0776 | J13: 8190.4776
C14: TRADE DISC. | D14: 0 | E14: 0 | F14: 0 | G14: 0 | H14: 0 | I14: 0 | J14: 0
C15: EX-GODOWN | D15: =D12+D13 -> 73894.6776 | E15: 74456.4776 | F15: 75580.0776 | G15: 75580.0776 | H15: 74231.7576 | I15: 72771.0776 | J15: 74456.4776
B16: CASH | C16: CASH.DISC | D16: =D9 -> 700 | E16: =E9 -> 700 | F16: 700 | G16: 700 | H16: 700 | I16: 700 | J16: 700
C17: EX-GODOWN | D17: =D15-D16 -> 73194.6776 | E17: 73756.4776 | F17: 74880.0776 | G17: 74880.0776 | H17: 73531.7576 | I17: 72071.0776 | J17: 73756.4776
A19: Jalgaon | B19: CRDT. | C19: BASIC | D19: =D5+427 -> 66317 | E19: =D19+500 -> 66817 | F19: =D19+1500 -> 67817 | G19: =D19+1500 -> 67817 | H19: =D19+300 -> 66617 | I19: =D19-1000 -> 65317 | J19: =D19+500 -> 66817
C20: EX.DUTY 12.36% | D20: =SUM(D19*12.36%) -> 8196.7812 | E20: 8258.5812 | F20: 8382.1812 | G20: 8382.1812 | H20: 8233.8612 | I20: 8073.1812 | J20: 8258.5812
C21: TRADE DISC. | D21: 0 | E21: 0 | F21: 0 | G21: 0 | H21: 0 | I21: 0 | J21: 0
C22: EX-GODOWN | D22: =D19+D20 -> 74513.7812 | E22: 75075.5812 | F22: 76199.1812 | G22: 76199.1812 | H22: 74850.8612 | I22: 73390.1812 | J22: 75075.5812
B23: CASH | C23: CASH.DISC | D23: =D9 -> 700 | E23: =E9 -> 700 | F23: 700 | G23: 700 | H23: 700 | I23: 700 | J23: 700
C24: EX-GODOWN | D24: =D22-D23 -> 73813.7812 | E24: 74375.5812 | F24: 75499.1812 | G24: 75499.1812 | H24: 74150.8612 | I24: 72690.1812 | J24: 74375.5812
A26: Pune | B26: CRDT. | C26: BASIC | D26: =D5+568 -> 66458 | E26: =D26+500 -> 66958 | F26: =D26+1500 -> 67958 | G26: =D26+1500 -> 67958 | H26: =D26+300 -> 66758 | I26: =D26-1000 -> 65458 | J26: =D26+500 -> 66958
C27: EX.DUTY 12.36% | D27: =SUM(D26*12.36%) -> 8214.2088 | E27: 8276.0088 | F27: 8399.6088 | G27: 8399.6088 | H27: 8251.2888 | I27: 8090.6088 | J27: 8276.0088
C28: TRADE DISC. | D28: 0 | E28: 0 | F28: 0 | G28: 0 | H28: 0 | I28: 0 | J28: 0
C29: EX-GODOWN | D29: =D26+D27 -> 74672.2088 | E29: 75234.0088 | F29: 76357.6088 | G29: 76357.6088 | H29: 75009.2888 | I29: 73548.6088 | J29: 75234.0088
B30: CASH | C30: CASH.DISC | D30: =D9 -> 700 | E30: =E9 -> 700 | F30: 700 | G30: 700 | H30: 700 | I30: 700 | J30: 700
C31: EX-GODOWN | D31: =D29-D30 -> 73972.2088 | E31: 74534.0088 | F31: 75657.6088 | G31: 75657.6088 | H31: 74309.2888 | I31: 72848.6088 | J31: 74534.0088
A33: Silvassa | B33: CRDT. | C33: BASIC | D33: =D5-108 -> 65782 | E33: =D33+500 -> 66282 | F33: =D33+1500 -> 67282 | G33: =D33+1500 -> 67282 | H33: =D33+300 -> 66082 | I33: =D33-1000 -> 64782 | J33: =D33+500 -> 66282
C34: EX.DUTY 12.36% | D34: =SUM(D33*12.36%) -> 8130.6552 | E34: 8192.4552 | F34: 8316.0552 | G34: 8316.0552 | H34: 8167.7352 | I34: 8007.0552 | J34: 8192.4552
C35: TRADE DISC. | D35: 0 | E35: 0 | F35: 0 | G35: 0 | H35: 0 | I35: 0 | J35: 0
C36: EX-GODOWN | D36: =D33+D34 -> 73912.6552 | E36: 74474.4552 | F36: 75598.0552 | G36: 75598.0552 | H36: 74249.7352 | I36: 72789.0552 | J36: 74474.4552
B37: CASH | C37: CASH.DISC | D37: =D9 -> 700 | E37: =E9 -> 700 | F37: 700 | G37: 700 | H37: 700 | I37: 700 | J37: 700
C38: EX-GODOWN | D38: =D36-D37 -> 73212.6552 | E38: 73774.4552 | F38: 74898.0552 | G38: 74898.0552 | H38: 73549.7352 | I38: 72089.0552 | J38: 73774.4552
A40: Suryapet-hyd | B40: CRDT. | C40: BASIC | D40: =D5+1824 -> 67714 | E40: =D40+500 -> 68214 | F40: =D40+1500 -> 69214 | G40: =D40+1500 -> 69214 | H40: =D40+300 -> 68014 | I40: =D40-1000 -> 66714 | J40: =D40+500 -> 68214
C41: EX.DUTY 12.36% | D41: =SUM(D40*12.36%) -> 8369.4504 | E41: 8431.2504 | F41: 8554.8504 | G41: 8554.8504 | H41: 8406.5304 | I41: 8245.8504 | J41: 8431.2504
C42: TRADE DISC. | D42: 0 | E42: 0 | F42: 0 | G42: 0 | H42: 0 | I42: 0 | J42: 0
C43: EX-GODOWN | D43: =D40+D41 -> 76083.4504 | E43: 76645.2504 | F43: 77768.8504 | G43: 77768.8504 | H43: 76420.5304 | I43: 74959.8504 | J43: 76645.2504
B44: CASH | C44: CASH.DISC | D44: =D9 -> 700 | E44: =E9 -> 700 | F44: 700 | G44: 700 | H44: 700 | I44: 700 | J44: 700
C45: EX-GODOWN | D45: =D43-D44 -> 75383.4504 | E45: 75945.2504 | F45: 77068.8504 | G45: 77068.8504 | H45: 75720.5304 | I45: 74259.8504 | J45: 75945.2504
A47: Salem | B47: CRDT. | C47: BASIC | D47: =D5+1854 -> 67744 | E47: =D47+500 -> 68244 | F47: =D47+1500 -> 69244 | G47: =D47+1500 -> 69244 | H47: =D47+300 -> 68044 | I47: =D47-1000 -> 66744 | J47: =D47+500 -> 68244
C48: EX.DUTY 12.36% | D48: =SUM(D47*12.36%) -> 8373.1584 | E48: =SUM(E47*12.36%) -> 8434.9584 | F48: 8558.5584 | G48: 8558.5584 | H48: 8410.2384 | I48: 8249.5584 | J48: 8434.9584
C49: TRADE DISC. | D49: =D9 -> 700 | E49: =E9 -> 700 | F49: 700 | G49: 700 | H49: 700 | I49: 700 | J49: 700
C50: EX-GODOWN | D50: =D47+D48 -> 76117.1584 | E50: 76678.9584 | F50: 77802.5584 | G50: 77802.5584 | H50: 76454.2384 | I50: 74993.5584 | J50: 76678.9584
B51: CASH | C51: CASH.DISC | D51: =D9 -> 700 | E51: =E9 -> 700 | F51: 700 | G51: 700 | H51: 700 | I51: 700 | J51: 700
C52: EX-GODOWN | D52: =D50-D51 -> 75417.1584 | E52: 75978.9584 | F52: 77102.5584 | G52: 77102.5584 | H52: 75754.2384 | I52: 74293.5584 | J52: 75978.9584
A54: Baddi | B54: CRDT. | C54: BASIC | D54: =D5+3362 -> 69252 | E54: =D54+500 -> 69752 | F54: =D54+1500 -> 70752 | G54: =D54+1500 -> 70752 | H54: =D54+300 -> 69552 | I54: =D54-1000 -> 68252 | J54: =D54+500 -> 69752
C55: EX.DUTY 12.36% | D55: =SUM(D54*12.36%) -> 8559.5472 | E55: 8621.3472 | F55: 8744.9472 | G55: 8744.9472 | H55: 8596.6272 | I55: 8435.9472 | J55: 8621.3472
C56: TRADE DISC. | D56: 0 | E56: 0 | F56: 0 | G56: 0 | H56: 0 | I56: 0 | J56: 0
C57: EX-GODOWN | D57: =D54+D55 -> 77811.5472 | E57: 78373.3472 | F57: 79496.9472 | G57: 79496.9472 | H57: 78148.6272 | I57: 76687.9472 | J57: 78373.3472
B58: CASH | C58: CASH.DISC | D58: =D9 -> 700 | E58: =E9 -> 700 | F58: 700 | G58: 700 | H58: 700 | I58: 700 | J58: 700
C59: EX-GODOWN | D59: =D57-D58 -> 77111.5472 | E59: 77673.3472 | F59: 78796.9472 | G59: 78796.9472 | H59: 77448.6272 | I59: 75987.9472 | J59: 77673.3472
A61: JAIPUR | B61: CRDT. | C61: BASIC | D61: =D5+1551 -> 67441 | E61: =D61+500 -> 67941 | F61: =D61+1500 -> 68941 | G61: =D61+1500 -> 68941 | H61: =D61+300 -> 67741 | I61: =D61-1000 -> 66441 | J61: =D61+500 -> 67941
C62: EX.DUTY 12.36% | D62: =SUM(D61*12.36%) -> 8335.7076 | E62: 8397.5076 | F62: 8521.1076 | G62: 8521.1076 | H62: 8372.7876 | I62: 8212.1076 | J62: 8397.5076
C63: TRADE DISC. | D63: 0 | E63: 0 | F63: 0 | G63: 0 | H63: 0 | I63: 0 | J63: 0
C64: EX-GODOWN | D64: =D61+D62 -> 75776.7076 | E64: 76338.5076 | F64: 77462.1076 | G64: 77462.1076 | H64: 76113.7876 | I64: 74653.1076 | J64: 76338.5076
B65: CASH | C65: CASH.DISC | D65: =D16 -> 700 | E65: =E16 -> 700 | F65: 700 | G65: 700 | H65: 700 | I65: 700 | J65: 700
C66: EX-GODOWN | D66: =D64-D65 -> 75076.7076 | E66: 75638.5076 | F66: 76762.1076 | G66: 76762.1076 | H66: 75413.7876 | I66: 73953.1076 | J66: 75638.5076

Sheet 1ST DEC EX PL
A1: EX WORKS PRICE 1.12.14
A2: EX-WORKS - HAZIRA / BARODA / GANDHAR Location Disc in MAHARASHTRA , DAMAN , SILVASSA.
C3: CREDIT | K3: CASH
A4: GRADE | B4: NET | C4: LESS | D4: LESS | E4: EXCISE | F4: CST | G4: LANDED | I4: NET | J4: LESS | K4: Less | L4: LESS | M4: EXCISE | N4: CST | O4: LANDED
B5: BASIC | C5: LOC DISC | D5: REG DISC | E5: 0.1236 | F5: 0.02 | G5: EX-PLANT | I5: BASIC | J5: LOC DISC | K5: Cach Disc | L5: REG DISC | M5: 0.1236 | N5: =F5 -> 0.02 | O5: EX-PLANT
A6: 67-01/67BER01/67GER01 | B6: 66000 | C6: 700 | D6: AS APPLICABLE | E6: =(B6-C6)*$E$11 -> 8071.08 | F6: =(B6-C6+E6)*$F$11 -> 1467.4216 | G6: =(B6-C6)+E6+F6 -> 74838.5016 | I6: =B6 -> 66000 | J6: =C6 -> 700 | K6: 700 | L6: AS APPLICABLE | M6: =(I6-J6-K6)*$E$11 -> 7984.56 | N6: =(I6-J6-K6+M6)*$F$11 -> 1451.6912 | O6: =I6-J6-K6+M6+N6 -> 74036.2512
A7: 67-11 | B7: =B6+500 -> 66500 | C7: 700 | D7: AS APPLICABLE | E7: 8132.88 | F7: 1478.6576 | G7: 75411.5376 | I7: 66500 | J7: 700 | K7: =K6 -> 700 | L7: AS APPLICABLE | M7: =(I7-J7-K7)*$E$11 -> 8046.36 | N7: 1462.9272 | O7: 74609.2872
A8: 67-03/67BER03/67GER03 | B8: =B6-1000 -> 65000 | C8: 700 | D8: AS APPLICABLE | E8: 7947.48 | F8: 1444.9496 | G8: 73692.4296 | I8: 65000 | J8: 700 | K8: =K6 -> 700 | L8: AS APPLICABLE | M8: 7860.96 | N8: 1429.2192 | O8: 72890.1792
A10: 57GMR01 | B10: =B6+1500 -> 67500 | C10: 700 | D10: AS APPLICABLE | E10: 8256.48 | F10: 1501.1296 | G10: 76557.6096 | I10: 67500 | J10: 700 | K10: =K6 -> 700 | L10: AS APPLICABLE | M10: 8169.96 | N10: 1485.3992 | O10: 75755.3592
A11: 57GER01 | B11: =B6+1500 -> 67500 | C11: 700 | D11: AS APPLICABLE | E11: 8256.48 | F11: 1501.1296 | G11: 76557.6096 | I11: 67500 | J11: 700 | K11: =K6 -> 700 | L11: AS APPLICABLE | M11: 8169.96 | N11: 1485.3992 | O11: 75755.3592
A12: 57GMR03 | B12: =B6+500 -> 66500 | C12: 700 | D12: AS APPLICABLE | E12: 8132.88 | F12: 1478.6576 | G12: 75411.5376 | I12: 66500 | J12: 700 | K12: =K6 -> 700 | L12: AS APPLICABLE | M12: 8046.36 | N12: 1462.9272 | O12: 74609.2872
A13: 67GER01F | B13: =B6+300 -> 66300 | C13: 700 | D13: AS APPLICABLE | E13: =(B13-C13)*$E$11 -> 8108.16 | F13: =(B13-C13+E13)*$F$11 -> 1474.1632 | G13: =(B13-C13)+E13+F13 -> 75182.3232 | I13: =I6+300 -> 66300 | J13: 700 | K13: =K6 -> 700 | L13: AS APPLICABLE | M13: =(I13-J13-K13)*$E$11 -> 8021.64 | N13: =(I13-J13-K13+M13)*$F$11 -> 1458.4328 | O13: =I13-J13-K13+M13+N13 -> 74380.0728
A15: PLEASE NOTE THE FOLLOWING :
A16: 1) PLEASE NOTE ITS MANDATORY TO HAVE SERVICE TAX NO W.E.F 01.06.08 FOR DISPATCHES FROM RIL
A17: 2) CUSTOMERS HAVE TO SUBMIT ORIGINAL 'C' FORM IN ADVANCE AGAINST PURCHASES MADE FROM
A18: RELIANCE INDS. LTD.
A19: 3) SALES TAX / VAT AS APPLICABLE RATES WILL BE EXTRA FOR HAZIRA , GANDHAR & GODOWN SALES. | C19: 3A) UNLOADING CHARGES TO BE BORNE BY CUSTOMER IN CASE OF EX WORK SALE.
A20: 4) OCTROI & OTHER LOCAL LEVIES ARE TO BE BORNE BY THE CUSTOMER.
A21: 5) LOADING CHARGES AND TRANSPORTATION FOR EX.GODOWN SALES TO BE BORNE BY CUSTOMER.
A22: 6) INTEREST FREE CREDIT DAYS HAVE BEEN REDUCED FROM 14 TO 10 DAYS.
A25: QUANTITY DISCOUNT | J25: TRANSPORTATION WEF 1ST DECEMBER 2014
A26: QTY(MT) | B26: 0 < 27 | C26: 27 < 54 | D26: 54 <99 | E26: 99<198 | F26: 198 > | J26: DESTINATION | M26: BD | N26: Hazira | O26: Gandhar
B27: 0 | C27: 100 | D27: 200 | E27: 300 | F27: 400 | J27: ALWAR - JAIPUR | M27: 2111 | N27: 2583 | O27: 2277
J28: AHEMADNAGAR | M28: 1924 | N28: 1522 | O28: 1828
A29: REGIONAL DISCOUNT : RIL-Ex- WORKS - Hazira , Baroda , Gandhar as under. | J29: BHAMBORI | M29: 1447 | N29: 1120 | O29: 1447
A30: K6701/K67GER01/K67BER01 | J30: BARODA | M30: 418 | N30: 599 | O30: 597
A31: JALGAV/NAGPUR | C31: 1000 | D31: HYDERABAD | E31: 1500 | J31: BARSHI | M31: 2402 | N31: 2126 | O31: 2548
A32: MAHARASHTRA - MUM/BHIWNDI/KOL/SOLA/PUNE/AURNGBAD/ NASHIK | C32: 1500 | D32: SALEM | E32: 2500 | J32: BHUJ | M32: - | N32: 1152 | O32: 891
J33: BOISAR | M33: 1402 | N33: 840 | O33: 1462
A34: DMN/SILVASSA | C34: 1000 | D34: ALWAR-BHIWADI | E34: 250 | J34: DAMAN | M34: 887 | N34: 591 | O34: 880
A35: BARODA | C35: 500 | D35: JAIPUR | E35: 500 | J35: DEHRADUN | M35: 2971 | N35: 3420 | O35: 6263
A36: NOTE : The above disc shall be deducted from basic price. | J36: GOA | M36: 3207 | N36: 3214 | O36: 3169
J37: GONDIA | M37: - | N37: 2094 | O37: 2478
A38: D.E. Prices for Ex Fact- Hazira , Baroda , Gandhar Complexes | J38: GARADHIA | M38: 504 | N38: 629 | O38: 511
A39: Location | B39: Type | C39: 67.01 | D39: 57GER01 | J39: HARIDWAR | M39: 2904 | N39: 3344 | O39: 3188
C40: 67GER01 | D40: 57GMR01 | E40: 67.11 | F40: 67GER01F | J40: JALGAON | M40: 1480 | N40: 1153 | O40: 1480
A41: EX WORKS HZ , BC & GC. | B41: EOU-CT3/AIL | C41: =B6-6500 -> 59500 | D41: =B6-5000 -> 61000 | E41: =B6-6000 -> 60000 | F41: =B6-6200 -> 59800 | J41: RAVER | M41: 1552 | N41: 1205 | O41: 1563
J42: JAMMU | M42: 3603 | N42: 3614 | O42: 3534
J43: MUMBAI | M43: 1547 | N43: 1107 | O43: 1602
J44: NALGONDA | M44: 3250 * | N44: 2867 | O44: 3091
J45: NASHIK | M45: 1371 | N45: 1210 | O45: 1477
J46: NAGPUR | M46: 2502 | N46: 2025 | O46: 2377
J47: PHALTAN | M47: - | N47: 2128 | O47: -
J48: SANGLI | M48: 2189 | N48: 2166 | O48: 2491
J49: SATARA | M49: 2146 | N49: 2126 | O49: 2250 *
J50: SILVASSA | M50: 887 | N50: 612 | O50: 890
J51: SOLAPUR | M51: 2404 | N51: 2126 | O51: 2546
J52: TALASARI | M52: 1351 | N52: 654 | O52: 1411
J53: UMERGAON | M53: 849 | N53: 579 | O53: 706
J54: VASAI | M54: 1472 | N54: 938 | O54: 1388
J55: UDMALPET | M55: 4515 | N55: 4359 | O55: 4417
J56: RAIGAD/MAHAD | M56: 1727 | N56: 1309 | O56: 1684
A61: WISHING YOU EVERY SUCCESS AT ALL TIME.
A62: Thanks & Regards,;
A63: Anil Mistry M-7738006668
A64: (Manager - Sales_
A65: e-mail: anil_mistry@vipl.com
A66: Ph.022-26824334/5/6

Sheet 1.12.14
Z2: www.vipl.com
A4: Tel: +91-22-26824334 / 26824345 / 46 / 47. Fax: +91-22-26823662 E mail : vipl@vipl.com; info@vipl.com
A5: PRICES FOR RELIANCE INDS LTD. REON PVC w.e.f. 1ST0DECEMBER - 2014 0600 AM : intro ld/rd1/4/14 REDUCTION
A7: EX WORKS PRICE 1.12.14 | Q7: EX DEPOT PRICE 1.12.14
A8: EX-WORKS - HAZIRA / BARODA / GANDHAR Location Disc in MAHARASHTRA , DAMAN , SILVASSA. | T8: PRIME-GRADES | Y8: OFF-GRADES
C9: CREDIT | K9: CASH | T9: 67-01/67BER01/67GER01 | U9: 67-11 | V9: 57GER01 | W9: 57GMR01 | X9: 67GER01F | Y9: 67-03/67BER03/67GER03 | Z9: 57GMR03
A10: GRADE | B10: NET | C10: LESS | D10: LESS | E10: EXCISE | F10: CST | G10: LANDED | I10: NET | J10: LESS | K10: Less | L10: LESS | M10: EXCISE | N10: CST | O10: LANDED
B11: BASIC | C11: LOC DISC | D11: REG DISC | E11: 0.1236 | F11: 0.02 | G11: EX-PLANT | I11: BASIC | J11: LOC DISC | K11: Cach Disc | L11: REG DISC | M11: 0.1236 | N11: =F11 -> 0.02 | O11: EX-PLANT | Q11: MUMBAI /PANVEL | R11: CRDT. | S11: BASIC | T11: 65890 | U11: =T11+500 -> 66390 | V11: =T11+1500 -> 67390 | W11: =T11+1500 -> 67390 | X11: =T11+300 -> 66190 | Y11: =T11-1000 -> 64890 | Z11: =T11+500 -> 66390
A12: 67-01/67BER01/67GER01 | B12: 66000 | C12: 700 | D12: AS APPLICABLE | E12: =(B12-C12)*$E$11 -> 8071.08 | F12: =(B12-C12+E12)*$F$11 -> 1467.4216 | G12: =(B12-C12)+E12+F12 -> 74838.5016 | I12: =B12 -> 66000 | J12: =C12 -> 700 | K12: 700 | L12: AS APPLICABLE | M12: =(I12-J12-K12)*$E$11 -> 7984.56 | N12: =(I12-J12-K12+M12)*$F$11 -> 1451.6912 | O12: =I12-J12-K12+M12+N12 -> 74036.2512 | S12: EX.DUTY 12.36% | T12: =SUM(T11*12.36%) -> 8144.004 | U12: 8205.804 | V12: 8329.404 | W12: 8329.404 | X12: 8181.084 | Y12: 8020.404 | Z12: 8205.804
A13: 67-11 | B13: =B12+500 -> 66500 | C13: 700 | D13: AS APPLICABLE | E13: 8132.88 | F13: 1478.6576 | G13: 75411.5376 | I13: 66500 | J13: =C13 -> 700 | K13: =K12 -> 700 | L13: AS APPLICABLE | M13: =(I13-J13-K13)*$E$11 -> 8046.36 | N13: 1462.9272 | O13: 74609.2872 | S13: TRADE DISC. | T13: 0 | U13: 0 | V13: 0 | W13: 0 | X13: 0 | Y13: 0 | Z13: 0
A14: 67-03/67BER03/67GER03 | B14: =B12-1000 -> 65000 | C14: 700 | D14: AS APPLICABLE | E14: 7947.48 | F14: 1444.9496 | G14: 73692.4296 | I14: 65000 | J14: 700 | K14: =K12 -> 700 | L14: AS APPLICABLE | M14: 7860.96 | N14: 1429.2192 | O14: 72890.1792 | S14: EX-GODOWN | T14: =T11+T12 -> 74034.004 | U14: 74595.804 | V14: 75719.404 | W14: 75719.404 | X14: 74371.084 | Y14: 72910.404 | Z14: 74595.804
R15: CASH | S15: CASH.DISC | T15: 700 | U15: =T15 -> 700 | V15: 700 | W15: 700 | X15: 700 | Y15: 700 | Z15: 700
A16: 57GMR01 | B16: =B12+1500 -> 67500 | C16: 700 | D16: AS APPLICABLE | E16: 8256.48 | F16: 1501.1296 | G16: 76557.6096 | I16: 67500 | J16: 700 | K16: =K12 -> 700 | L16: AS APPLICABLE | M16: 8169.96 | N16: 1485.3992 | O16: 75755.3592 | S16: EX-GODOWN | T16: =T14-T15 -> 73334.004 | U16: 73895.804 | V16: 75019.404 | W16: 75019.404 | X16: 73671.084 | Y16: 72210.404 | Z16: 73895.804
A17: 57GER01 | B17: =B12+1500 -> 67500 | C17: 700 | D17: AS APPLICABLE | E17: 8256.48 | F17: 1501.1296 | G17: 76557.6096 | I17: 67500 | J17: 700 | K17: =K12 -> 700 | L17: AS APPLICABLE | M17: 8169.96 | N17: 1485.3992 | O17: 75755.3592
A18: 57GMR03 | B18: =B12+500 -> 66500 | C18: 700 | D18: AS APPLICABLE | E18: 8132.88 | F18: 1478.6576 | G18: 75411.5376 | I18: 66500 | J18: 700 | K18: =K12 -> 700 | L18: AS APPLICABLE | M18: 8046.36 | N18: 1462.9272 | O18: 74609.2872 | Q18: Daman | R18: CRDT. | S18: BASIC | T18: =T11-124 -> 65766 | U18: =T18+500 -> 66266 | V18: =T18+1500 -> 67266 | W18: =T18+1500 -> 67266 | X18: =T18+300 -> 66066 | Y18: =T18-1000 -> 64766 | Z18: =T18+500 -> 66266
A19: 67GER01F | B19: =B12+300 -> 66300 | C19: 700 | D19: AS APPLICABLE | E19: =(B19-C19)*$E$11 -> 8108.16 | F19: =(B19-C19+E19)*$F$11 -> 1474.1632 | G19: =(B19-C19)+E19+F19 -> 75182.3232 | I19: =I12+300 -> 66300 | J19: 700 | K19: =K12 -> 700 | L19: AS APPLICABLE | M19: =(I19-J19-K19)*$E$11 -> 8021.64 | N19: =(I19-J19-K19+M19)*$F$11 -> 1458.4328 | O19: =I19-J19-K19+M19+N19 -> 74380.0728 | S19: EX.DUTY 12.36% | T19: =SUM(T18*12.36%) -> 8128.6776 | U19: 8190.4776 | V19: 8314.0776 | W19: 8314.0776 | X19: 8165.7576 | Y19: 8005.0776 | Z19: 8190.4776
S20: TRADE DISC. | T20: 0 | U20: 0 | V20: 0 | W20: 0 | X20: 0 | Y20: 0 | Z20: 0
A21: PLEASE NOTE THE FOLLOWING : | S21: EX-GODOWN | T21: =T18+T19 -> 73894.6776 | U21: 74456.4776 | V21: 75580.0776 | W21: 75580.0776 | X21: 74231.7576 | Y21: 72771.0776 | Z21: 74456.4776
A22: 1) PLEASE NOTE ITS MANDATORY TO HAVE SERVICE TAX NO W.E.F 01.06.08 FOR DISPATCHES FROM RIL | R22: CASH | S22: CASH.DISC | T22: =T15 -> 700 | U22: =U15 -> 700 | V22: 700 | W22: 700 | X22: 700 | Y22: 700 | Z22: 700
A23: 2) CUSTOMERS HAVE TO SUBMIT ORIGINAL 'C' FORM IN ADVANCE AGAINST PURCHASES MADE FROM | S23: EX-GODOWN | T23: =T21-T22 -> 73194.6776 | U23: 73756.4776 | V23: 74880.0776 | W23: 74880.0776 | X23: 73531.7576 | Y23: 72071.0776 | Z23: 73756.4776
A24: RELIANCE INDS. LTD.
A25: 3) SALES TAX / VAT AS APPLICABLE RATES WILL BE EXTRA FOR HAZIRA , GANDHAR & GODOWN SALES. | C25: 3A) UNLOADING CHARGES TO BE BORNE BY CUSTOMER IN CASE OF EX WORK SALE. | Q25: Jalgaon | R25: CRDT. | S25: BASIC | T25: =T11+427 -> 66317 | U25: =T25+500 -> 66817 | V25: =T25+1500 -> 67817 | W25: =T25+1500 -> 67817 | X25: =T25+300 -> 66617 | Y25: =T25-1000 -> 65317 | Z25: =T25+500 -> 66817
A26: 4) OCTROI & OTHER LOCAL LEVIES ARE TO BE BORNE BY THE CUSTOMER. | S26: EX.DUTY 12.36% | T26: =SUM(T25*12.36%) -> 8196.7812 | U26: 8258.5812 | V26: 8382.1812 | W26: 8382.1812 | X26: 8233.8612 | Y26: 8073.1812 | Z26: 8258.5812
A27: 5) LOADING CHARGES AND TRANSPORTATION FOR EX.GODOWN SALES TO BE BORNE BY CUSTOMER. | S27: TRADE DISC. | T27: 0 | U27: 0 | V27: 0 | W27: 0 | X27: 0 | Y27: 0 | Z27: 0
A28: 6) INTEREST FREE CREDIT DAYS HAVE BEEN REDUCED FROM 14 TO 10 DAYS. | S28: EX-GODOWN | T28: =T25+T26 -> 74513.7812 | U28: 75075.5812 | V28: 76199.1812 | W28: 76199.1812 | X28: 74850.8612 | Y28: 73390.1812 | Z28: 75075.5812
R29: CASH | S29: CASH.DISC | T29: =T15 -> 700 | U29: =U15 -> 700 | V29: 700 | W29: 700 | X29: 700 | Y29: 700 | Z29: 700
S30: EX-GODOWN | T30: =T28-T29 -> 73813.7812 | U30: 74375.5812 | V30: 75499.1812 | W30: 75499.1812 | X30: 74150.8612 | Y30: 72690.1812 | Z30: 74375.5812
A31: QUANTITY DISCOUNT | J31: TRANSPORTATION WEF 1ST DECEMBER 2014
A32: QTY(MT) | B32: 0 < 27 | C32: 27 < 54 | D32: 54 <99 | E32: 99<198 | F32: 198 > | J32: DESTINATION | M32: BD | N32: Hazira | O32: Gandhar | Q32: Pune | R32: CRDT. | S32: BASIC | T32: =T11+568 -> 66458 | U32: =T32+500 -> 66958 | V32: =T32+1500 -> 67958 | W32: =T32+1500 -> 67958 | X32: =T32+300 -> 66758 | Y32: =T32-1000 -> 65458 | Z32: =T32+500 -> 66958
B33: 0 | C33: 100 | D33: 200 | E33: 300 | F33: 400 | J33: ALWAR - JAIPUR | M33: 2111 | N33: 2583 | O33: 2277 | S33: EX.DUTY 12.36% | T33: =SUM(T32*12.36%) -> 8214.2088 | U33: 8276.0088 | V33: 8399.6088 | W33: 8399.6088 | X33: 8251.2888 | Y33: 8090.6088 | Z33: 8276.0088
J34: AHEMADNAGAR | M34: 1924 | N34: 1522 | O34: 1828 | S34: TRADE DISC. | T34: 0 | U34: 0 | V34: 0 | W34: 0 | X34: 0 | Y34: 0 | Z34: 0
A35: REGIONAL DISCOUNT : RIL-Ex- WORKS - Hazira , Baroda , Gandhar as under. | J35: BHAMBORI | M35: 1447 | N35: 1120 | O35: 1447 | S35: EX-GODOWN | T35: =T32+T33 -> 74672.2088 | U35: 75234.0088 | V35: 76357.6088 | W35: 76357.6088 | X35: 75009.2888 | Y35: 73548.6088 | Z35: 75234.0088
A36: K6701/K67GER01/K67BER01 | J36: BARODA | M36: 418 | N36: 599 | O36: 597 | R36: CASH | S36: CASH.DISC | T36: =T15 -> 700 | U36: =U15 -> 700 | V36: 700 | W36: 700 | X36: 700 | Y36: 700 | Z36: 700
A37: JALGAV/NAGPUR | C37: 1000 | D37: HYDERABAD | E37: 1500 | J37: BARSHI | M37: 2402 | N37: 2126 | O37: 2548 | S37: EX-GODOWN | T37: =T35-T36 -> 73972.2088 | U37: 74534.0088 | V37: 75657.6088 | W37: 75657.6088 | X37: 74309.2888 | Y37: 72848.6088 | Z37: 74534.0088
A38: MAHARASHTRA - MUM/BHIWNDI/KOL/SOLA/PUNE/AURNGBAD/ NASHIK | C38: 1500 | D38: SALEM | E38: 2500 | J38: BHUJ | M38: - | N38: 1152 | O38: 891
J39: BOISAR | M39: 1402 | N39: 840 | O39: 1462 | Q39: Silvassa | R39: CRDT. | S39: BASIC | T39: =T11-108 -> 65782 | U39: =T39+500 -> 66282 | V39: =T39+1500 -> 67282 | W39: =T39+1500 -> 67282 | X39: =T39+300 -> 66082 | Y39: =T39-1000 -> 64782 | Z39: =T39+500 -> 66282
A40: DMN/SILVASSA | C40: 1000 | D40: ALWAR-BHIWADI | E40: 250 | J40: DAMAN | M40: 887 | N40: 591 | O40: 880 | S40: EX.DUTY 12.36% | T40: =SUM(T39*12.36%) -> 8130.6552 | U40: 8192.4552 | V40: 8316.0552 | W40: 8316.0552 | X40: 8167.7352 | Y40: 8007.0552 | Z40: 8192.4552
A41: BARODA | C41: 500 | D41: JAIPUR | E41: 500 | J41: DEHRADUN | M41: 2971 | N41: 3420 | O41: 6263 | S41: TRADE DISC. | T41: 0 | U41: 0 | V41: 0 | W41: 0 | X41: 0 | Y41: 0 | Z41: 0
A42: NOTE : The above disc shall be deducted from basic price. | J42: GOA | M42: 3207 | N42: 3214 | O42: 3169 | S42: EX-GODOWN | T42: =T39+T40 -> 73912.6552 | U42: 74474.4552 | V42: 75598.0552 | W42: 75598.0552 | X42: 74249.7352 | Y42: 72789.0552 | Z42: 74474.4552
J43: GONDIA | M43: - | N43: 2094 | O43: 2478 | R43: CASH | S43: CASH.DISC | T43: =T15 -> 700 | U43: =U15 -> 700 | V43: 700 | W43: 700 | X43: 700 | Y43: 700 | Z43: 700
A44: D.E. Prices for Ex Fact- Hazira , Baroda , Gandhar Complexes | J44: GARADHIA | M44: 504 | N44: 629 | O44: 511 | S44: EX-GODOWN | T44: =T42-T43 -> 73212.6552 | U44: 73774.4552 | V44: 74898.0552 | W44: 74898.0552 | X44: 73549.7352 | Y44: 72089.0552 | Z44: 73774.4552
A45: Location | B45: Type | C45: 67.01 | D45: 57GER01 | J45: HARIDWAR | M45: 2904 | N45: 3344 | O45: 3188
C46: 67GER01 | D46: 57GMR01 | E46: 67.11 | F46: 67GER01F | J46: JALGAON | M46: 1480 | N46: 1153 | O46: 1480 | Q46: Suryapet-hyd | R46: CRDT. | S46: BASIC | T46: =T11+1824 -> 67714 | U46: =T46+500 -> 68214 | V46: =T46+1500 -> 69214 | W46: =T46+1500 -> 69214 | X46: =T46+300 -> 68014 | Y46: =T46-1000 -> 66714 | Z46: =T46+500 -> 68214
A47: EX WORKS HZ , BC & GC. | B47: EOU-CT3/AIL | C47: =B12-6500 -> 59500 | D47: =B12-5000 -> 61000 | E47: =B12-6000 -> 60000 | F47: =B12-6200 -> 59800 | J47: RAVER | M47: 1552 | N47: 1205 | O47: 1563 | S47: EX.DUTY 12.36% | T47: =SUM(T46*12.36%) -> 8369.4504 | U47: 8431.2504 | V47: 8554.8504 | W47: 8554.8504 | X47: 8406.5304 | Y47: 8245.8504 | Z47: 8431.2504
J48: JAMMU | M48: 3603 | N48: 3614 | O48: 3534 | S48: TRADE DISC. | T48: 0 | U48: 0 | V48: 0 | W48: 0 | X48: 0 | Y48: 0 | Z48: 0
J49: MUMBAI | M49: 1547 | N49: 1107 | O49: 1602 | S49: EX-GODOWN | T49: =T46+T47 -> 76083.4504 | U49: 76645.2504 | V49: 77768.8504 | W49: 77768.8504 | X49: 76420.5304 | Y49: 74959.8504 | Z49: 76645.2504
J50: NALGONDA | M50: 3250 * | N50: 2867 | O50: 3091 | R50: CASH | S50: CASH.DISC | T50: =T15 -> 700 | U50: =U15 -> 700 | V50: 700 | W50: 700 | X50: 700 | Y50: 700 | Z50: 700
J51: NASHIK | M51: 1371 | N51: 1210 | O51: 1477 | S51: EX-GODOWN | T51: =T49-T50 -> 75383.4504 | U51: 75945.2504 | V51: 77068.8504 | W51: 77068.8504 | X51: 75720.5304 | Y51: 74259.8504 | Z51: 75945.2504
J52: NAGPUR | M52: 2502 | N52: 2025 | O52: 2377
J53: PHALTAN | M53: - | N53: 2128 | O53: - | Q53: Salem | R53: CRDT. | S53: BASIC | T53: =T11+1854 -> 67744 | U53: =T53+500 -> 68244 | V53: =T53+1500 -> 69244 | W53: =T53+1500 -> 69244 | X53: =T53+300 -> 68044 | Y53: =T53-1000 -> 66744 | Z53: =T53+500 -> 68244
J54: SANGLI | M54: 2189 | N54: 2166 | O54: 2491 | S54: EX.DUTY 12.36% | T54: =SUM(T53*12.36%) -> 8373.1584 | U54: =SUM(U53*12.36%) -> 8434.9584 | V54: 8558.5584 | W54: 8558.5584 | X54: 8410.2384 | Y54: 8249.5584 | Z54: 8434.9584
J55: SATARA | M55: 2146 | N55: 2126 | O55: 2250 * | S55: TRADE DISC. | T55: =T15 -> 700 | U55: =U15 -> 700 | V55: 700 | W55: 700 | X55: 700 | Y55: 700 | Z55: 700
J56: SILVASSA | M56: 887 | N56: 612 | O56: 890 | S56: EX-GODOWN | T56: =T53+T54 -> 76117.1584 | U56: 76678.9584 | V56: 77802.5584 | W56: 77802.5584 | X56: 76454.2384 | Y56: 74993.5584 | Z56: 76678.9584
J57: SOLAPUR | M57: 2404 | N57: 2126 | O57: 2546 | R57: CASH | S57: CASH.DISC | T57: =T15 -> 700 | U57: =U15 -> 700 | V57: 700 | W57: 700 | X57: 700 | Y57: 700 | Z57: 700
J58: TALASARI | M58: 1351 | N58: 654 | O58: 1411 | S58: EX-GODOWN | T58: =T56-T57 -> 75417.1584 | U58: 75978.9584 | V58: 77102.5584 | W58: 77102.5584 | X58: 75754.2384 | Y58: 74293.5584 | Z58: 75978.9584
J59: UMERGAON | M59: 849 | N59: 579 | O59: 706
J60: VASAI | M60: 1472 | N60: 938 | O60: 1388 | Q60: Baddi | R60: CRDT. | S60: BASIC | T60: =T11+3362 -> 69252 | U60: =T60+500 -> 69752 | V60: =T60+1500 -> 70752 | W60: =T60+1500 -> 70752 | X60: =T60+300 -> 69552 | Y60: =T60-1000 -> 68252 | Z60: =T60+500 -> 69752
J61: UDMALPET | M61: 4515 | N61: 4359 | O61: 4417 | S61: EX.DUTY 12.36% | T61: =SUM(T60*12.36%) -> 8559.5472 | U61: 8621.3472 | V61: 8744.9472 | W61: 8744.9472 | X61: 8596.6272 | Y61: 8435.9472 | Z61: 8621.3472
J62: RAIGAD/MAHAD | M62: 1727 | N62: 1309 | O62: 1684 | S62: TRADE DISC. | T62: 0 | U62: 0 | V62: 0 | W62: 0 | X62: 0 | Y62: 0 | Z62: 0
S63: EX-GODOWN | T63: =T60+T61 -> 77811.5472 | U63: 78373.3472 | V63: 79496.9472 | W63: 79496.9472 | X63: 78148.6272 | Y63: 76687.9472 | Z63: 78373.3472
R64: CASH | S64: CASH.DISC | T64: =T15 -> 700 | U64: =U15 -> 700 | V64: 700 | W64: 700 | X64: 700 | Y64: 700 | Z64: 700
S65: EX-GODOWN | T65: =T63-T64 -> 77111.5472 | U65: 77673.3472 | V65: 78796.9472 | W65: 78796.9472 | X65: 77448.6272 | Y65: 75987.9472 | Z65: 77673.3472
A67: WISHING YOU EVERY SUCCESS AT ALL TIME. | Q67: JAIPUR | R67: CRDT. | S67: BASIC | T67: =T11+1551 -> 67441 | U67: =T67+500 -> 67941 | V67: =T67+1500 -> 68941 | W67: =T67+1500 -> 68941 | X67: =T67+300 -> 67741 | Y67: =T67-1000 -> 66441 | Z67: =T67+500 -> 67941
A68: Thanks & Regards,; | S68: EX.DUTY 12.36% | T68: =SUM(T67*12.36%) -> 8335.7076 | U68: 8397.5076 | V68: 8521.1076 | W68: 8521.1076 | X68: 8372.7876 | Y68: 8212.1076 | Z68: 8397.5076
A69: Anil Mistry M-7738006668 | S69: TRADE DISC. | T69: 0 | U69: 0 | V69: 0 | W69: 0 | X69: 0 | Y69: 0 | Z69: 0
A70: (Manager - Sales_ | S70: EX-GODOWN | T70: =T67+T68 -> 75776.7076 | U70: 76338.5076 | V70: 77462.1076 | W70: 77462.1076 | X70: 76113.7876 | Y70: 74653.1076 | Z70: 76338.5076
A71: e-mail: anil_mistry@vipl.com | R71: CASH | S71: CASH.DISC | T71: =T22 -> 700 | U71: =U22 -> 700 | V71: 700 | W71: 700 | X71: 700 | Y71: 700 | Z71: 700
A72: Ph.022-26824334/5/6 | S72: EX-GODOWN | T72: =T70-T71 -> 75076.7076 | U72: 75638.5076 | V72: 76762.1076 | W72: 76762.1076 | X72: 75413.7876 | Y72: 73953.1076 | Z72: 75638.5076
